Cogmind - Beta 13 @@@ ROGUE MODE // 2024.04.22 @ 22:25:40 Player: ywiktor Result: Destroyed by G-67 Veteran with Plasma Rifle Performance ------------- Evolutions (7) 3500 Regions Visited (16) 3200 Robots Destroyed (69) 345 Value Destroyed (2364) 2364 Prototype IDs (11) 220 Alien Tech Used (0) 0 Bonus (-87) -87 TOTAL SCORE: 9542 Bonus ------- Aligned with FarCom 300 Friendly Fire -387 Cogmind --------- Core Integrity 0/1300 Matter 76/300 Energy 99/100 System Corruption 7% Temperature Cool (0) Movement Core (50) Location -3/Research Parts ------- > --- POWER (3) -------- (None) > --- PROPULSION (5) --- (None) > --- UTILITY (11) ----- Advanced Targeting Computer Makeshift Hacking Suite Makeshift Hacking Suite > --- WEAPON (2) ------- (None) > --- INVENTORY (5) ---- Particle Reactor Peak State ------------ > --- POWER ------------ Light Nuclear Core Light Fission Core Particle Reactor > --- PROPULSION ------- Biomechanical Wings Field Propulsion Drive Field Propulsion Drive Impulse Thruster Array > --- UTILITY ---------- Advanced Weight Redist. System Advanced Signal Interpreter Improved Targeting Computer Advanced Targeting Computer Advanced Targeting Computer Advanced Targeting Computer Improved Cloaking Device Hacking Suite Hacking Suite Makeshift Hacking Suite Makeshift Hacking Suite > --- WEAPON ----------- Railgun Light Antimatter Cannon > --- INVENTORY -------- Cooled VTOL Module Graphene Brace Point Defense System Linear Accelerator Chainsword [Rating: 108] Favorites ----------- Power Micro Nuclear Core Engine Light Ion Engine Power Core Micro Nuclear Core Reactor Particle Reactor Propulsion Aluminum Leg Leg Aluminum Leg Wheel Wheel Flight Unit Cooled VTOL Module Utility Small Storage Unit Device Advanced Weight Redist. System Storage Small Storage Unit Processor Improved Targeting Computer Hackware Makeshift Hacking Suite Protection Light Armor Plating Weapon Light Assault Rifle Energy Gun Particle Gun Energy Cannon Ion Cannon Ballistic Gun Light Assault Rifle Ballistic Cannon Light Antimatter Cannon Launcher Advanced EMP Blaster Impact Weapon Impact Mace Slashing Weapon Chainsword Build | -11 -10 -10 -10 -9 -8 -7 -7 -7 -6 -6 -6 -5 -4 -4 -4 -3 ------- Run | Yrd Mat Min Exi Min Mat Fac Low Low Fac Low Low Fac Fac Upp Upp Res Slots Evolved 14 | . . . . . 4 2 . . 2 . . 2 2 . . 2 Power 2 | . . . . . . 1 . . . . . . 1 . . . Propulsion 3 | . . . . . 2 . . . . . . 1 . . . . Utility 9 | . . . . . 2 1 . . 2 . . 1 1 . . 2 Weapon . | . . . . . . . . . . . . . . . . . Parts Attached 148 | 6 3 5 7 . 38 22 . 4 6 4 . 9 15 4 2 23 Power 24 | 1 2 1 . . 4 4 . 2 . . . 1 3 1 1 4 Engine 9 | 1 2 . . . 1 2 . 1 . . . 1 . 1 . . Core 12 | . . 1 . . 3 2 . 1 . . . . 3 . 1 1 Reactor 3 | . . . . . . . . . . . . . . . . 3 Propulsion 50 | 2 . 3 . . 13 12 . 1 1 . . 4 8 1 . 5 Treads . | . . . . . . . . . . . . . . . . . Leg 19 | 2 . 3 . . 13 . . . . . . . . . . 1 Wheel 1 | . . . . . . . . . . . . . . . . 1 Hover . | . . . . . . . . . . . . . . . . . Flight 30 | . . . . . . 12 . 1 1 . . 4 8 1 . 3 Utility 31 | 1 1 . 3 . 8 1 . . 5 2 . 2 2 . . 6 Device 12 | . . . 2 . 4 . . . 2 . . . 1 . . 3 Storage 2 | 1 . . 1 . . . . . . . . . . . . . Processor 9 | . 1 . . . 1 1 . . 2 1 . . 1 . . 2 Hackware 5 | . . . . . 1 . . . . 1 . 2 . . . 1 Protection 3 | . . . . . 2 . . . 1 . . . . . . . Artifact . | . . . . . . . . . . . . . . . . . Weapon 43 | 2 . 1 4 . 13 5 . 1 . 2 . 2 2 2 1 8 Energy Gun 5 | . . 1 1 . 1 . . . . . . . 1 . . 1 Energy Cannon 8 | . . . 2 . 5 1 . . . . . . . . . . Ballistic Gun 16 | 2 . . 1 . 4 1 . 1 . 1 . 2 . 1 1 2 Ballistic Cannon 3 | . . . . . . . . . . . . . . . . 3 Launcher 8 | . . . . . 3 2 . . . 1 . . . 1 . 1 Special Weapon . | . . . . . . . . . . . . . . . . . Impact Weapon 1 | . . . . . . 1 . . . . . . . . . . Slashing Weapon 2 | . . . . . . . . . . . . . 1 . . 1 Piercing Weapon . | . . . . . . . . . . . . . . . . . Special Melee Weapon . | . . . . . . . . . . . . . . . . . Unidentified Prototypes 11 | . . . 3 . 1 2 . . 1 . . 1 . . . 3 Corrupted Parts 1 | . . . . . 1 . . . . . . . . . . . System Corruption 2 | . . . . . 2 . . . . . . . . . . . Parts Lost 56 | . 1 2 . . 7 1 . 3 . 3 . 1 5 3 5 25 Power 11 | . 1 . . . 1 . . 1 . . . 1 1 1 2 3 Propulsion 19 | . . 2 . . 3 . . 1 . . . . 3 1 1 8 Utility 16 | . . . . . 2 . . 1 . 2 . . 1 . . 10 Weapon 10 | . . . . . 1 1 . . . 1 . . . 1 2 4 Highest Loss Streak 19 | . 1 2 . . 3 1 . 3 . 3 . 1 3 2 4 19 To Critical Strikes 1 | . . . . . . . . . . . . . . 1 . . Average Slot Usage (%) 92 | . 95 99 98 100 94 90 92 83 71 88 93 97 96 97 89 82 Engine 4 | . 14 4 . . 3 12 7 4 . . . . 4 2 1 . Core 7 | . . 9 14 14 5 2 7 8 13 13 13 11 10 10 7 5 Leg 12 | . 28 27 28 28 32 . . . . . . . . . . . Flight 15 | . . . . . . 29 30 29 26 26 26 29 25 25 26 16 Device 6 | . . . . . 12 7 7 6 2 7 6 5 5 10 10 9 Storage 7 | . 14 14 13 14 9 7 7 7 6 6 6 5 4 . . . Processor 15 | . 10 14 14 14 10 14 15 10 8 22 26 17 18 21 21 23 Hackware 6 | . . . . . . 7 7 7 6 3 6 15 15 15 15 15 Energy Gun 2 | . . 7 13 14 3 . . . . . . . 1 5 2 . Energy Cannon 2 | . . . . . 8 5 . . . . . . . . . . Ballistic Gun 7 | . 28 20 13 14 3 . . 4 6 5 6 10 6 1 5 2 Naked Turns . | . . . . . . . . . . . . . . . . . Heaviest Build 42 | 10 12 14 14 14 26 21 21 26 22 22 21 31 39 36 29 42 Greatest Support 47 | 20 20 20 20 20 47 32 21 21 31 35 31 40 44 42 41 45 Greatest Overweight (x) 10 | . . 1 . . 1 1 . 1 1 . . . 1 1 . 10 Average Overweight (x) . | . . . . . . . . . . . . . . . . . Largest Inventory Capacity 8 | 8 8 8 8 8 8 8 8 8 8 8 8 8 8 5 5 5 Average Capacity 7 | 7 8 8 7 8 8 8 8 8 8 8 8 8 7 5 5 5 Most Carried 8 | 3 8 8 8 8 8 8 8 8 8 8 8 8 8 5 3 5 Average Carried 6 | 1 6 7 7 8 7 7 8 7 7 6 8 7 7 4 2 3 Final Capacity 8 | 8 8 8 8 8 8 8 8 8 8 8 8 8 5 5 5 5 Final Carried 8 | 3 8 8 8 8 8 8 8 8 7 8 8 7 5 3 2 1 Class Distribution -------------------- 30% | Scavenger-Mutant 30% | Hacker-Sprinter 11% | Sprinter 11% | Mutant 10% | Scavenger-Sprinter 4% | Hacker-Mutant Dominant Class ---------------- Mutant | -10/Materials Scavenger-Mutant | -10/Mines Scavenger-Mutant | -10/Exiles Scavenger-Mutant | -9/Mines Scavenger-Mutant | -8/Materials Scavenger-Sprinter | -7/Factory Sprinter | -7/Lower Caves Mutant | -7/Lower Caves Sprinter | -6/Factory Sprinter | -6/Lower Caves Sprinter | -6/Lower Caves Hacker-Sprinter | -5/Factory Hacker-Sprinter | -4/Factory Hacker-Sprinter | -4/Upper Caves Hacker-Sprinter | -4/Upper Caves Hacker-Sprinter | -3/Research Resources | -11 -10 -10 -10 -9 -8 -7 -7 -7 -6 -6 -6 -5 -4 -4 -4 -3 ----------- Run | Yrd Mat Min Exi Min Mat Fac Low Low Fac Low Low Fac Fac Upp Upp Res Matter Collected 2210 | 231 63 105 . 31 375 160 30 88 131 87 . 157 110 477 117 48 Remotely . | . . . . . . . . . . . . . . . . . Salvage Created 2424 | . 124 211 . . 859 160 . 88 . 410 . . 103 305 70 94 Parts 119 | . 7 8 . . 54 6 . 2 . 9 . . 2 14 4 13 Haulers Intercepted . | . . . . . . . . . . . . . . . . . Recyclers Shooed 1 | . . . . . . . . . . . . . 1 . . . Parts Field Recycled . | . . . . . . . . . . . . . . . . . Retrieved Matter . | . . . . . . . . . . . . . . . . . Parts Self-Destructed 12 | . . . . . . . . 1 . 2 . . . 6 3 . Prevented 3 | . . . . . . . . . . 1 . . . . 2 . Kills | -11 -10 -10 -10 -9 -8 -7 -7 -7 -6 -6 -6 -5 -4 -4 -4 -3 ------- Run | Yrd Mat Min Exi Min Mat Fac Low Low Fac Low Low Fac Fac Upp Upp Res Combat Hostiles Destroyed 63 | . 4 2 . . 24 4 . 3 . 7 . . 3 11 3 2 Guns 28 | . 4 2 . . 7 1 . 3 . 3 . . 3 1 3 1 Cannons 16 | . . . . . 14 2 . . . . . . . . . . AOE 18 | . . . . . 3 . . . . 4 . . . 10 . 1 Classes Destroyed 12 | . 2 1 . . 3 1 . . . 1 . . . 2 . 2 Worker 2 | . . . . . 1 . . . . . . . . . . 1 Builder 1 | . . . . . . . . . . . . . . . . 1 Recycler 1 | . . 1 . . . . . . . . . . . . . . Swarmer 29 | . 2 . . . 11 2 . 1 . 3 . . 2 5 3 . Cutter 1 | . . . . . . . . . . . . . . . . 1 Grunt 19 | . 2 2 . . 8 . . 1 . 3 . . . 3 . . Brawler 1 | . . . . . 1 . . . . . . . . . . . Duelist 1 | . . . . . . . . . . 1 . . . . . . Sentry 7 | . . . . . 4 1 . 1 . . . . . 1 . . Hunter 3 | . . . . . . . . . . . . . . 2 . 1 Programmer 2 | . . . . . . 1 . . . . . . 1 . . . Samaritan 1 | . . . . . . . . . . . . . . 1 . . Thug 1 | . . . . . . . . . . 1 . . . . . . Butcher 1 | . . . . . . . . . . 1 . . . . . . Best Kill Streak 8 | . 2 2 . . 8 2 . 3 . 7 . . 2 5 3 2 Combat Bots Only 7 | . 2 1 . . 7 2 . 3 . 7 . . 2 5 3 1 Max Kills in Single Turn 3 | . 1 1 . . 3 1 . 1 . 3 . . 1 3 1 2 Gunslinging . | . . . . . . . . . . . . . . . . . Exploded 3 | . . . . . 3 . . . . 3 . . . 3 . 1 Melee . | . . . . . . . . . . . . . . . . . Uniques/NPCs Destroyed . | . . . . . . . . . . . . . . . . . Combat | -11 -10 -10 -10 -9 -8 -7 -7 -7 -6 -6 -6 -5 -4 -4 -4 -3 -------- Run | Yrd Mat Min Exi Min Mat Fac Low Low Fac Low Low Fac Fac Upp Upp Res Hostile Shots Fired 642 | . 32 27 . . 138 29 1 46 . 19 . 5 43 30 30 242 Missed 231 | . 6 5 . . 39 16 1 18 . 8 . 3 15 10 10 100 Damage Taken 7193 | . 308 337 . . 1328 132 . 307 . 185 . 86 662 395 319 3134 Core 2158 | . 79 91 . . 252 17 . 41 . 31 . . 131 120 75 1321 Absorbed by Shields . | . . . . . . . . . . . . . . . . . Core Remaining (%) 77 | 100 . . . 32 54 . . 91 . . 96 100 . . 71 . Volleys Fired 203 | . 15 21 . . 71 11 . 15 . 13 . . 15 17 12 13 Largest 2 | . 2 2 . . 2 1 . 1 . 1 . . 1 2 2 2 Hottest 130 | . 40 40 . . 130 60 . 36 . 36 . . 88 118 121 95 Shots Fired 286 | . 30 42 . . 111 11 . 15 . 13 . . 15 20 14 15 Gun 202 | . 30 42 . . 60 4 . 14 . 10 . . 15 7 14 6 Cannon 59 | . . . . . 49 4 . . . . . . . . . 6 Launcher 25 | . . . . . 2 3 . 1 . 3 . . . 13 . 3 Special . | . . . . . . . . . . . . . . . . . Kinetic 152 | . 30 42 . . 25 4 . 14 . 10 . . . 4 12 11 Thermal 102 | . . . . . 78 4 . . . . . . 15 3 2 . Explosive 16 | . . . . . . . . . . . . . . 13 . 3 Electromagnetic 16 | . . . . . 8 3 . 1 . 3 . . . . . 1 Robot Hit Streak 22 | . 8 9 . . 22 18 . 20 . 8 . . 12 18 5 8 Robot Miss Streak 7 | . 2 2 . . 2 2 . 3 . 7 . . 3 3 3 1 Penetration Max . | . . . . . . . . . . . . . . . . . Secondary Targets 2 | . 1 1 . . . . . . . . . . . . . . Max Gunslinging Chain 1 | . 1 1 . . . . . . . . . . . . . . Shots Hit Robots 219 | . 23 31 . . 82 11 . 15 . 12 . . 12 13 9 11 Core Hits 143 | . 9 11 . . 39 8 . 16 . 21 . . 4 24 3 8 Critical Kills 1 | . . . . . . . . . . . . . . 1 . . Critical Parts Destroyed 2 | . . . . . . . . . . . . . . . 2 . Critical Strikes 6 | . . . . . 2 . . . . . . . 1 1 2 . Burn 3 | . . . . . 2 . . . . . . . 1 . . . Destroy 3 | . . . . . . . . . . . . . . 1 2 . Melee Attacks 4 | . . . . . . . . . . . . . 2 . . 2 Impact . | . . . . . . . . . . . . . . . . . Slashing 4 | . . . . . . . . . . . . . 2 . . 2 Piercing . | . . . . . . . . . . . . . . . . . Sneak Attacks . | . . . . . . . . . . . . . . . . . Combat Hostiles . | . . . . . . . . . . . . . . . . . Follow-up Attacks . | . . . . . . . . . . . . . . . . . Damage Inflicted 6539 | 2 188 243 . . 1651 308 . 300 . 772 . . 353 1771 195 756 Guns 2374 | . 188 243 . . 631 125 . 279 . 125 . . 353 84 195 151 Cannons 1156 | . . . . . 945 105 . . . . . . . . . 106 Explosions 2995 | . . . . . 66 78 . 21 . 647 . . . 1687 . 496 Melee . | . . . . . . . . . . . . . . . . . Ramming 14 | 2 . . . . 9 . . . . . . . . . . 3 Kinetic 1585 | . 188 243 . . 168 125 . 279 . 125 . . . 58 169 230 Thermal 2135 | . . . . . 1285 105 . . . 340 . . 353 26 26 . Explosive 2183 | . . . . . . . . . . . . . . 1687 . 496 Electromagnetic 622 | . . . . . 189 78 . 21 . 307 . . . . . 27 Impact . | . . . . . . . . . . . . . . . . . Slashing . | . . . . . . . . . . . . . . . . . Piercing . | . . . . . . . . . . . . . . . . . Highest Corruption 7 | . . . . . 4 1 1 1 . . . . 5 5 5 7 Average Corruption 3 | . . . . . 2 1 1 1 . . . . 3 5 5 5 Corruption Purged . | . . . . . . . . . . . . . . . . . Corruption Blocked . | . . . . . . . . . . . . . . . . . Effects 36 | . . . . . 8 1 2 . . . . . 6 10 2 7 Message Errors 12 | . . . . . 1 . 1 . . . . . 3 5 1 1 Matter Fused 5 | . . . . . 1 1 . . . . . . . 1 . 2 Heat Flow Errors 5 | . . . . . 2 . . . . . . . 1 1 . 1 Energy Discharges 4 | . . . . . . . 1 . . . . . . 1 1 1 Parts Fused 1 | . . . . . 1 . . . . . . . . . . . Data Loss (minor) 6 | . . . . . 1 . . . . . . . 1 2 . 2 Data Loss (major) 2 | . . . . . 1 . . . . . . . 1 . . . Alerts 1 | . . . . . 1 . . . . . . . . . . . Overload Shots . | . . . . . . . . . . . . . . . . . Overflow Damage 252 | . . . . . 9 . . . . 48 . . . 155 . 40 Projectiles 9 | . . . . . 9 . . . . . . . . . . . Explosions 243 | . . . . . . . . . . 48 . . . 155 . 40 Melee . | . . . . . . . . . . . . . . . . . Knockbacks . | . . . . . . . . . . . . . . . . . Impact . | . . . . . . . . . . . . . . . . . Kinetic . | . . . . . . . . . . . . . . . . . Secondary . | . . . . . . . . . . . . . . . . . Self-Inflicted Damage 132 | . . . . . . . . 26 . . . . . 21 . 85 Shots 3 | . . . . . . . . 1 . . . . . 1 . 1 Rammed 2 | . . . . . . . . . . . . . . . . 2 Targets Rammed 5 | 1 . . . . 2 . . . . . . . . . . 2 Kicked 3 | 1 . . . . 2 . . . . . . . . . . . Crushed . | . . . . . . . . . . . . . . . . . Highest Temperature 429 | . 43 36 . . 429 8 . 8 . 2 . 5 416 123 43 89 Average Temperature 126 | . 18 15 . . 118 4 . 7 . 2 . 5 179 34 21 40 Received Heat Transfer 1230 | . 147 219 . . 576 24 . 129 . 9 . . 45 9 9 63 Effects 18 | . . . . . 4 . . . . . . . 14 . . . Shutdowns 4 | . . . . . 1 . . . . . . . 3 . . . Energy Bleed 2 | . . . . . . . . . . . . . 2 . . . Interference 6 | . . . . . 2 . . . . . . . 4 . . . Matter Decay 2 | . . . . . . . . . . . . . 2 . . . Damage (minor) 4 | . . . . . 1 . . . . . . . 3 . . . Siege Activations . | . . . . . . . . . . . . . . . . . Robots Corrupted 1 | . . . . . . 1 . . . . . . . . . . Combat Hostiles 1 | . . . . . . 1 . . . . . . . . . . Parts Fried 4 | . . . . . 2 2 . . . . . . . . . . Impact Corruptions . | . . . . . . . . . . . . . . . . . Robots Melted . | . . . . . . . . . . . . . . . . . Combat Hostiles . | . . . . . . . . . . . . . . . . . Parts Melted 7 | . . . . . 5 . . . . . . . 2 . . . Heat Transferred 3469 | . . . . . 2479 148 . . . 250 . . 518 37 37 . Parts Sabotaged . | . . . . . . . . . . . . . . . . . Parts Stolen . | . . . . . . . . . . . . . . . . . Parts Stripped . | . . . . . . . . . . . . . . . . . Power Chain Reactions 3 | . . . . . . . . . . 3 . . . . . . Alert | -11 -10 -10 -10 -9 -8 -7 -7 -7 -6 -6 -6 -5 -4 -4 -4 -3 ------- Run | Yrd Mat Min Exi Min Mat Fac Low Low Fac Low Low Fac Fac Upp Upp Res Peak Influence 401 | . 149 64 . . 282 133 . . 68 . . 142 92 . . 401 Initial 223 | . . 4 . . . 106 . . 44 . . 112 18 . . 223 Average 107 | . 89 36 . . 159 66 . . 57 . . 77 44 . . 231 Maximum Alert Level 2 | . . . . . 1 . . . . . . . . . . 2 Low Security (%) 82 | 100 100 100 . 100 69 100 . . 100 . . 100 100 . . 25 Level 1 17 | . . . . . 30 . . . . . . . . . . 73 Level 2 . | . . . . . . . . . . . . . . . . . Level 3 . | . . . . . . . . . . . . . . . . . Level 4 . | . . . . . . . . . . . . . . . . . Level 5 . | . . . . . . . . . . . . . . . . . High Security . | . . . . . . . . . . . . . . . . . Max Security . | . . . . . . . . . . . . . . . . . Squads Dispatched 23 | . 4 . . . 3 1 . . 1 . . 1 4 . . 9 Investigation 8 | . 2 . . . 1 . . . . . . . 1 . . 4 Extermination 4 | . . . . . . 1 . . 1 . . . 1 . . 1 Reinforcement 11 | . 2 . . . 2 . . . . . . 1 2 . . 4 Assault . | . . . . . . . . . . . . . . . . . Garrison . | . . . . . . . . . . . . . . . . . Intercept . | . . . . . . . . . . . . . . . . . Searches Triggered . | . . . . . . . . . . . . . . . . . Construction Impeded . | . . . . . . . . . . . . . . . . . Haulers Reinforced . | . . . . . . . . . . . . . . . . . Active Scanning Responses . | . . . . . . . . . . . . . . . . . Cargo Convoy Interrupts . | . . . . . . . . . . . . . . . . . Stealth | -11 -10 -10 -10 -9 -8 -7 -7 -7 -6 -6 -6 -5 -4 -4 -4 -3 --------- Run | Yrd Mat Min Exi Min Mat Fac Low Low Fac Low Low Fac Fac Upp Upp Res Distress Signals 12 | . 3 . . . 4 . . . . . . 1 . . . 4 Communications Jammed . | . . . . . . . . . . . . . . . . . Distress Signals . | . . . . . . . . . . . . . . . . . Times Spotted 141 | . 8 4 . . 33 6 1 3 . 11 . 3 12 20 7 33 Peak Tracking Total 13 | . 3 2 . . 5 3 4 3 1 7 . 3 4 6 4 13 Tactical Retreats 21 | . 1 1 . . 1 1 . . . 3 . . 2 3 1 8 Traps | -11 -10 -10 -10 -9 -8 -7 -7 -7 -6 -6 -6 -5 -4 -4 -4 -3 ------- Run | Yrd Mat Min Exi Min Mat Fac Low Low Fac Low Low Fac Fac Upp Upp Res Traps Triggered 9 | . . . . . 5 1 . . . . . 1 1 . . 1 Indirectly 1 | . . . . . . 1 . . . . . . . . . . Trap Hack Attempts . | . . . . . . . . . . . . . . . . . Triggered . | . . . . . . . . . . . . . . . . . Disarmed . | . . . . . . . . . . . . . . . . . Reprogrammed . | . . . . . . . . . . . . . . . . . Reused . | . . . . . . . . . . . . . . . . . Traps Extracted . | . . . . . . . . . . . . . . . . . Installed . | . . . . . . . . . . . . . . . . . Triggered 4 | . . . . . . . . 1 . . . . . . 3 . Machines | -11 -10 -10 -10 -9 -8 -7 -7 -7 -6 -6 -6 -5 -4 -4 -4 -3 ---------- Run | Yrd Mat Min Exi Min Mat Fac Low Low Fac Low Low Fac Fac Upp Upp Res Machines Disabled 1 | . . . . . 1 . . . . . . . . . . . Max in Single Turn 1 | . . . . . 1 . . . . . . . . . . . Garrison Access 4 | . . . . . . . . . . . . 1 2 . . 1 Machines Repaired . | . . . . . . . . . . . . . . . . . Machines Dismantled . | . . . . . . . . . . . . . . . . . Machines Sabotaged . | . . . . . . . . . . . . . . . . . Overloaded Fab Kills . | . . . . . . . . . . . . . . . . . Hacking | -11 -10 -10 -10 -9 -8 -7 -7 -7 -6 -6 -6 -5 -4 -4 -4 -3 --------- Run | Yrd Mat Min Exi Min Mat Fac Low Low Fac Low Low Fac Fac Upp Upp Res Machines Accessed 50 | . 4 . 1 . 5 14 2 . 4 2 . 4 6 . . 8 Terminals 34 | . 4 . . . 5 10 . . 4 . . 2 3 . . 6 Fabricators 5 | . . . . . . 2 . . . . . 1 1 . . 1 Repair Stations . | . . . . . . . . . . . . . . . . . Recycling Units . | . . . . . . . . . . . . . . . . . Scanalyzers . | . . . . . . . . . . . . . . . . . Garrison Access 6 | . . . . . . 2 . . . . . 1 2 . . 1 Total Hacks 110 | . 9 . 4 . 10 24 5 . 12 6 . 8 10 . . 22 Successful 67 | . 4 . 4 . 5 12 5 . 6 6 . 7 4 . . 14 Failed 43 | . 5 . . . 5 12 . . 6 . . 1 6 . . 8 Catastrophic 8 | . . . . . 2 3 . . 1 . . . 1 . . 1 Database Lockouts . | . . . . . . . . . . . . . . . . . Manual 77 | . 9 . 1 . 10 17 . . 11 . . 6 7 . . 16 Terminals 80 | . 9 . . . 10 19 . . 12 . . 4 7 . . 19 Fabricators 7 | . . . . . . 2 . . . . . 2 1 . . 2 Repair Stations . | . . . . . . . . . . . . . . . . . Recycling Units . | . . . . . . . . . . . . . . . . . Scanalyzers . | . . . . . . . . . . . . . . . . . Garrison Access 8 | . . . . . . 3 . . . . . 2 2 . . 1 Terminal Hacks 28 | . . . 4 . . 4 5 . 1 6 . 2 . . . 6 Record 20 | . . . 4 . . 3 4 . . 5 . 1 . . . 3 Robot Analysis 1 | . . . . . . . . . . . . 1 . . . . Open Door 2 | . . . . . . . 1 . . 1 . . . . . . Emergency Access Points 1 | . . . . . . . . . 1 . . . . . . . Locate Traps 1 | . . . . . . 1 . . . . . . . . . . Recall Investigation 1 | . . . . . . . . . . . . . . . . 1 Recall Extermination 1 | . . . . . . . . . . . . . . . . 1 Recall Assault 1 | . . . . . . . . . . . . . . . . 1 Fabricator Hacks 7 | . . . . . . 2 . . . . . 2 1 . . 2 Network Status 5 | . . . . . . 2 . . . . . 1 1 . . 1 Build 2 | . . . . . . . . . . . . 1 . . . 1 Repair Station Hacks . | . . . . . . . . . . . . . . . . . Recycling Unit Hacks . | . . . . . . . . . . . . . . . . . Scanalyzer . | . . . . . . . . . . . . . . . . . Garrison Access Hacks 4 | . . . . . . . . . . . . 1 2 . . 1 Seal Access 4 | . . . . . . . . . . . . 1 2 . . 1 Unauthorized Hacks 28 | . 4 . . . 5 6 . . 5 . . 2 1 . . 5 Terminals 28 | . 4 . . . 5 6 . . 5 . . 2 1 . . 5 Assimilate 3 | . . . . . . 1 . . 2 . . . . . . . Botnet 25 | . 4 . . . 5 5 . . 3 . . 2 1 . . 5 Fabricators . | . . . . . . . . . . . . . . . . . Repair Stations . | . . . . . . . . . . . . . . . . . Recycling Units . | . . . . . . . . . . . . . . . . . Scanalyzers . | . . . . . . . . . . . . . . . . . Garrison Access . | . . . . . . . . . . . . . . . . . Data Cores Recovered . | . . . . . . . . . . . . . . . . . Used . | . . . . . . . . . . . . . . . . . Hacking Detections 34 | . 3 . . . 3 11 . . 3 . . 3 4 . . 7 Full Trace Events 8 | . 1 . . . 2 . . . . . . . 1 . . 4 Feedback Events 1 | . . . . . . . . . . . . . . . . 1 Corruption 1 | . . . . . . . . . . . . . . . . 1 Feedback Blocked . | . . . . . . . . . . . . . . . . . Robot Schematics Acquired . | . . . . . . . . . . . . . . . . . Robots Built . | . . . . . . . . . . . . . . . . . Authchips . | . . . . . . . . . . . . . . . . . Time . | . . . . . . . . . . . . . . . . . Total Robot Build Rating . | . . . . . . . . . . . . . . . . . Part Schematics Acquired . | . . . . . . . . . . . . . . . . . Parts Built 2 | . . . . . . . . . . . . 1 . . . 1 Authchips . | . . . . . . . . . . . . . . . . . Time 192 | . . . . . . . . . . . . 128 . . . 64 Total Part Build Rating 16 | . . . . . . . . . . . . 8 . . . 8 Parts Repaired . | . . . . . . . . . . . . . . . . . Time . | . . . . . . . . . . . . . . . . . Parts Recycled . | . . . . . . . . . . . . . . . . . Recycled Matter . | . . . . . . . . . . . . . . . . . Retrieved Matter . | . . . . . . . . . . . . . . . . . Retrieved Components . | . . . . . . . . . . . . . . . . . Parts Scanalyzed . | . . . . . . . . . . . . . . . . . Part Schematics Acquired . | . . . . . . . . . . . . . . . . . Parts Damaged . | . . . . . . . . . . . . . . . . . Bothacking | -11 -10 -10 -10 -9 -8 -7 -7 -7 -6 -6 -6 -5 -4 -4 -4 -3 ------------ Run | Yrd Mat Min Exi Min Mat Fac Low Low Fac Low Low Fac Fac Upp Upp Res Used RIF Installer . | . . . . . . . . . . . . . . . . . Robots Hacked . | . . . . . . . . . . . . . . . . . Non-combat . | . . . . . . . . . . . . . . . . . Combat . | . . . . . . . . . . . . . . . . . Robot Hacks Applied . | . . . . . . . . . . . . . . . . . Relay Couplers Released . | . . . . . . . . . . . . . . . . . Fabnet Peak Effective % . | . . . . . . . . . . . . . . . . . Robots Rewired . | . . . . . . . . . . . . . . . . . Allies Hacked . | . . . . . . . . . . . . . . . . . Hacks Repelled . | . . . . . . . . . . . . . . . . . Allies | -11 -10 -10 -10 -9 -8 -7 -7 -7 -6 -6 -6 -5 -4 -4 -4 -3 -------- Run | Yrd Mat Min Exi Min Mat Fac Low Low Fac Low Low Fac Fac Upp Upp Res Total Allies . | . . . . . . . . . . . . . . . . . Largest Group . | . . . . . . . . . . . . . . . . . Highest-Rated Group . | . . . . . . . . . . . . . . . . . Highest-Rated Ally . | . . . . . . . . . . . . . . . . . Total Orders . | . . . . . . . . . . . . . . . . . Ally Attacks . | . . . . . . . . . . . . . . . . . Total Damage . | . . . . . . . . . . . . . . . . . Kills . | . . . . . . . . . . . . . . . . . Allies Corrupted . | . . . . . . . . . . . . . . . . . Allies Melted . | . . . . . . . . . . . . . . . . . Intel | -11 -10 -10 -10 -9 -8 -7 -7 -7 -6 -6 -6 -5 -4 -4 -4 -3 ------- Run | Yrd Mat Min Exi Min Mat Fac Low Low Fac Low Low Fac Fac Upp Upp Res Robot Analysis Total 1 | . . . . . . . . . . . . 1 . . . . Derelict Logs Recovered 4 | . . 1 . . . . 1 . . 1 1 . . . . . Drone Launches 2 | . . . . . 2 . . . . . . . . . . . Drone Recoveries 1 | . . . . . 1 . . . . . . . . . . . Exploration | -11 -10 -10 -10 -9 -8 -7 -7 -7 -6 -6 -6 -5 -4 -4 -4 -3 ------------- Run | Yrd Mat Min Exi Min Mat Fac Low Low Fac Low Low Fac Fac Upp Upp Res Turns Passed 7610 | 57 492 478 635 48 1404 1060 131 78 252 265 39 665 732 373 57 844 Spaces Moved 11386 | 41 355 314 513 37 812 2364 458 87 508 689 138 1185 1256 936 65 1628 Core 50 | 6 . . . . . . . . . . . . . . . 44 Treads . | . . . . . . . . . . . . . . . . . Legs 2090 | 35 355 314 513 37 812 22 . . . . . . . . . 2 Wheels 12 | . . . . . . . . . . . . . . . . 12 Hover . | . . . . . . . . . . . . . . . . . Flight 9234 | . . . . . . 2342 458 87 508 689 138 1185 1256 936 65 1570 Fastest Speed 21 | 50 120 120 120 120 105 27 27 27 27 21 28 25 29 29 29 28 Average Speed 46 | 109 120 122 120 120 117 31 27 34 27 27 28 27 30 30 29 34 Slowest Speed 550 | 120 120 190 120 120 190 111 27 95 100 28 28 29 119 108 32 550 Overloaded Moves 2 | . . . . . . . . . . 2 . . . . . . Propulsion Burnouts . | . . . . . . . . . . . . . . . . . Robots Hopped 45 | . . . . . . 6 . . 2 1 . 22 3 . . 11 Cave-ins Triggered . | . . . . . . . . . . . . . . . . . Exploration Rate (%) 36 | 3 54 39 93 15 48 41 55 11 8 67 16 19 25 85 10 25 Regions Visited 16 Branch Regions 9 Pre-discovered Areas 1 | . . . . . . . . . . 1 . . . . . . Known Exits Taken 8 | . . . 1 . . . . . 1 1 1 1 1 1 1 . Unknown Exits Taken 8 | 1 1 1 . 1 1 1 1 1 . . . . . . . . Scrap Searched 9 | . . 1 . 1 . . 1 . . 3 . . . 3 . . Spaces Dug 4 | . . . . . . . . . . . . . 1 . . 3 Terrain Destroyed 282 | . . . . . 3 . . . . 13 . . 1 237 1 27 Melee 1 | . . . . . . . . . . . . . 1 . . . Projectile 13 | . . . . . 3 . . . . . . . . 4 1 5 AOE 268 | . . . . . . . . . . 13 . . . 233 . 22 Terrain Rammed . | . . . . . . . . . . . . . . . . . Walls Destroyed . | . . . . . . . . . . . . . . . . . Machines Disabled . | . . . . . . . . . . . . . . . . . Actions | -11 -10 -10 -10 -9 -8 -7 -7 -7 -6 -6 -6 -5 -4 -4 -4 -3 --------- Run | Yrd Mat Min Exi Min Mat Fac Low Low Fac Low Low Fac Fac Upp Upp Res Total 13330 | 50 397 377 533 41 1150 2660 465 118 617 745 137 1507 1577 1000 87 1869 Wait 1498 | . 16 27 2 3 200 244 6 12 101 37 . 322 277 44 9 198 Move 11283 | 40 354 313 512 36 811 2351 457 86 503 686 137 1143 1249 935 64 1606 Hop 42 | . . . . . . 6 . . 2 1 . 19 3 . . 11 Pick Up 64 | 3 7 4 4 1 11 8 1 . 2 3 . 6 7 . . 7 Fast Attach 75 | 6 1 2 7 . 21 3 . 1 4 2 . 2 8 1 1 16 Attach 36 | . 1 1 . . 4 8 . 1 2 1 . 4 5 2 1 6 Detach 7 | . . . . . 1 3 . 1 . . . . 1 . . 1 Swap 37 | . 1 2 . . 13 11 . 2 . 1 . 3 2 1 . 1 Drop 75 | . 2 6 8 1 16 15 1 . 3 1 . 8 8 . . 6 Fire 203 | . 15 21 . . 71 11 . 15 . 13 . . 15 17 12 13 Melee 4 | . . . . . . . . . . . . . 2 . . 2 Ram 2 | . . . . . . . . . . . . . . . . 2 Kick 3 | 1 . . . . 2 . . . . . . . . . . . Crush . | . . . . . . . . . . . . . . . . . Escape Stasis . | . . . . . . . . . . . . . . . . . Rewire 1 | . . 1 . . . . . . . . . . . . . . Trap . | . . . . . . . . . . . . . . . . . Miscellaneous . | . . . . . . . . . . . . . . . . . Route ------- -11/Scrapyard -10/Materials (discovered 2 exits: [*Mat] / [*Min]) -10/Mines -10/Exiles (discovered 2 exits: *Min x2) -9/Mines -8/Materials -7/Factory -7/Lower Caves -7/Lower Caves -6/Factory (discovered 2 exits: *Low / *Ext) -6/Lower Caves -6/Lower Caves -5/Factory (discovered 3 exits: *Fac x2 / Upp) -4/Factory -4/Upper Caves -4/Upper Caves -3/Research History --------- Turn | Location | Event 7 | -11/Scrapyard | Discovered new exit (range 15) 58 | -11/Scrapyard | Entered Materials 175 | -10/Materials | Discovered new exit (range 3) 309 | -10/Materials | Build established: Mutant 454 | -10/Materials | Discovered new exit (range 8) 550 | -10/Materials | Entered Mines 552 | -10/Mines | Met a Derelict bent on vengeance 673 | -10/Mines | Core integrity fell below 50% 1021 | -10/Mines | Deemed a non-threat by the Exiles lab entrance 1022 | -10/Mines | Discovered new exit (range 5) 1028 | -10/Mines | Entered Exiles 1029 | -10/Exiles | Identified exit to Mines 1075 | -10/Exiles | Met 8R-AWN 1087 | -10/Exiles | Build established: Scavenger-Mutant 1094 | -10/Exiles | Met EX-HEX 1139 | -10/Exiles | Met EX-BIN 1153 | -10/Exiles | Aligned with FarCom system 1154 | -10/Exiles | Given EX-Vault access code 1192 | -10/Exiles | Opened EX-Vault 1203 | -10/Exiles | Found Prototype Energy Cannon 1203 | -10/Exiles | Identified YOLO Cannon 1209 | -10/Exiles | Found Prototype Energy Cannon 1209 | -10/Exiles | Identified Gui. Plasma Cannon 1218 | -10/Exiles | Found Prototype Device 1218 | -10/Exiles | Identified Supersonic Drone Bay 1271 | -10/Exiles | Warned to stay clear of 0b10 Research branches 1350 | -10/Exiles | Met EX-DEC 1451 | -10/Exiles | Visited The Gauntlet 1663 | -10/Exiles | Left Exiles lab with Supersonic Drone Bay 1663 | -10/Exiles | Entered Mines 1695 | -9/Mines | Discovered new exit (range 8) 1711 | -9/Mines | Entered Materials 1711 | -8/Materials | Evolved 4 slots: Propulsion x2, Utility x2 2269 | -8/Materials | Destroyed 7 combat bots 2493 | -8/Materials | Lost 3 parts (1p1n1u) 3059 | -8/Materials | Discovered new exit (range 13) 3115 | -8/Materials | Entered Factory 3115 | -7/Factory | Evolved 2 slots: Power x1, Utility x1 3479 | -7/Factory | Build established: Scavenger-Sprinter 4152 | -7/Factory | Discovered new exit (range 12) 4175 | -7/Factory | Entered Lower Caves 4240 | -7/Lower Caves | Learned 4 Factory zone layouts 4253 | -7/Lower Caves | Learned location of 1 exit from Factory 4253 | -7/Lower Caves | Learned Research garrison access intel 4297 | -7/Lower Caves | Build established: Sprinter 4305 | -7/Lower Caves | Discovered new exit (range 7) 4306 | -7/Lower Caves | Entered another Lower Caves area 4344 | -7/Lower Caves | Attracted the attention of an 0b10 checkpoint 4378 | -7/Lower Caves | Discovered new exit (range 5) 4379 | -7/Lower Caves | Encountered a Warlord checkpoint 4381 | -7/Lower Caves | Lost 3 parts (1p1n1u) 4384 | -7/Lower Caves | Entered Factory 4384 | -6/Factory | Evolved 2 slots: Utility x2 4385 | -6/Factory | Identified exit to Extension 4398 | -6/Factory | Discovered new exit (range 9) 4623 | -6/Factory | Identified exit to Lower Caves 4636 | -6/Factory | Entered Lower Caves 4637 | -6/Lower Caves | Encountered a Warlord checkpoint 4671 | -6/Lower Caves | Attracted the attention of an 0b10 outpost 4702 | -6/Lower Caves | Lost 3 allies 4731 | -6/Lower Caves | Destroyed 7 combat bots 4739 | -6/Lower Caves | Lost 3 parts (2u1w) 4752 | -6/Lower Caves | Learned location of 1 exit from Factory 4752 | -6/Lower Caves | Learned Armory stockpile data 4866 | -6/Lower Caves | Discovered new exit (range 14) 4901 | -6/Lower Caves | Identified exit to Lower Caves 4901 | -6/Lower Caves | Entered another Lower Caves area 4902 | -6/Lower Caves | Learned location of 1 exit from Factory 4936 | -6/Lower Caves | Discovered new exit (range 7) 4937 | -6/Lower Caves | Identified exit to Factory 4940 | -6/Lower Caves | Entered Factory 4940 | -5/Factory | Evolved 2 slots: Propulsion x1, Utility x1 4941 | -5/Factory | Identified exit to Upper Caves 4941 | -5/Factory | Identified exit to Factory 5134 | -5/Factory | Fabricated Fusion Bomb Launcher? 5234 | -5/Factory | Build established: Hacker-Sprinter 5581 | -5/Factory | Discovered exit to Factory (range 5) 5605 | -5/Factory | Entered another Factory area 5605 | -4/Factory | Evolved 2 slots: Power x1, Utility x1 6306 | -4/Factory | Lost 3 parts (1p1n1u) 6326 | -4/Factory | Discovered new exit (range 6) 6337 | -4/Factory | Identified exit to Upper Caves 6337 | -4/Factory | Entered Upper Caves 6615 | -4/Upper Caves | Attracted the attention of an 0b10 checkpoint 6683 | -4/Upper Caves | Attracted the attention of an 0b10 outpost 6708 | -4/Upper Caves | Discovered new exit (range 7) 6709 | -4/Upper Caves | Identified exit to Upper Caves 6710 | -4/Upper Caves | Entered another Upper Caves area 6762 | -4/Upper Caves | Lost 4 parts (2p2w) 6764 | -4/Upper Caves | Discovered new exit (range 11) 6766 | -4/Upper Caves | Identified exit to Research 6767 | -4/Upper Caves | Entered Research 6767 | -3/Research | Evolved 2 slots: Utility x2 6768 | -3/Research | Loaded intel: 4 garrison access locations 7059 | -3/Research | Fabricated Impulse Thruster Array (x1) 7359 | -3/Research | Lost 5 parts (1p2n1u1w) 7425 | -3/Research | Found Prototype Launcher 7540 | -3/Research | Identified Hellfire Missile Launcher 7563 | -3/Research | Spotted B-86 Titan 7569 | -3/Research | Core integrity fell below 50% 7590 | -3/Research | Core integrity fell below 20% 7611 | -3/Research | Destroyed by G-67 Veteran with Plasma Rifle Last Messages --------------- 07590_ Penetrated by Slug. 07590_ Adv. Signal Interpreter destroyed. 07590_ Slug penetrates Wall. 07591_ Knocked back. 07592_ System corrupted: Matter fused (-9). 07592_ The unstable cave ceiling collapses. 07593_ Penetrated by Slug. 07597_ Knocked back. 07598_ Acquired 4 matter. 07603_ Graphene Brace destroyed. 07606_ Imp. Targeting Computer destroyed. 07607_ Connecting with Terminal... >>Recall(Assault) Establishing remote squad link... No tasked assault squads found. 07607_ ALERT: Suspicious activity at Terminal R006. Dispatching Investigation squad. 07610_ Penetrated by Slug. 07610_ Terminal disabled. 07610_ Slammed into Y-72 Warden. Map ----- +----------------------------------------------------+ | ??????????????????????????????# | | ??????????????????????????????# | | ??????#???????????????????????# | | ??????# ??????????????????????# | | ??????# ??????????????????????# | | ??????# ?????????????????????## | | ??????# ?????????????????????#" | | ??????# ??????????????????????# | | ??????# ???####+###???????????# | | ??????# ???# ############# | | ??????# #### | | ??????+ ! % | | ??????# % | | ??????##H### | | ???????# #?# ############# | | ???????#x#?### ###???????????# | | ???????# #???# #?????????????# | | ???????# #???# #?????????????# | | ???#####+##### #?????????????# | | ???# ## #?????????????# | | ???# # #??? ?????# | | ???# """ #x # ????# | | ???# "T # + ?????# | | ???# " "g g #????????????# | | ???# g #g #????????????? | | ??# * @ Yp # #????????????? | | ??## # #????????????? | | ???#! # #????????????? | | ???########## #????????????? | | ???????????????? #????????????? | | ?????????????????#????????????? | | ??????????????????????????????? | | ??????????????????????????????? | | ??????????????????????????????? | | ??????????????????????????????? | | ??????????????????????????????? | | ??????????????????????????????? | | ??????????????????????????????? | | ??????????????????????????????? | | ??????????????????????????????? | | ??????????????????????????????? | | ??????????????????????????????? | | ??????????????????????????????? | | ??????????????????????????????? | | ??????????????????????????????? | | ??????????????????????????????? | | ??????????????????????????????? | | ?????""?""????????????????????? | | ?????""G""????????????????????? | | ??????????????????????????????? | +----------------------------------------------------+ Best States ------------- Heat Dissipation 72 Energy Generation 56 Energy Capacity 460 Matter Stores 300 Matter Capacity 300 Sight Range 16 Terrain Scan Density 85 Additional Mass Support 9 Armor Coverage 150 Evasion (%) 65 Targeting Accuracy 30 Particle Charging 15 Offensive Hacking 42 Item Schematics ----------------- None Robot Schematics ------------------ None Fabricated ------------ Fusion Bomb Launcher | x1 | -5/Factory | Preloaded Impulse Thruster Array | x1 | -3/Research | Preloaded Alien Tech Used ----------------- None Achievements -------------- Can't Catch Me Cya! Just What I Needed Party Time Respectable Loadout Slippery One Challenges ------------ None Game ------ Seed AlertNetworkShifter Manual? 0 Play Time 02:27:05 Cumulative 17.4 hours Start 2024.04.20 @ 21:01:10 End 2024.04.22 @ 22:25:40 Sessions 5 Manual Loads 0 Difficulty Rogue Special Mode None Game No. 18 Rogue 18 Adventurer 0 Explorer 0 Win Type - Total 0 Types 0/0/0/0/0/0/0/0/0 Lore% 20 Gallery% 23 Achievement% 23 Wizard Run 0 Options --------- Layout 1 ASCII 0 Keyboard 0 Movement Numpad Keybinds 0 Fullscreen 1 Font 24/Smallcaps Map View 50x35 Zoom Use 0% Tactical HUD 1 Map Filters NONE Filters NONE Steam 1 RUN: 3790d38d-ab02-4395-94ef-89475b5db644